Workbook

Sheet Worksheet
A1: Pasūtītājs: JVPI Pilsētsaimniecība
A2: Vien. reģ. Nr. 90001282486
A3: Pulkv.O.Kalpaka 16a, Jelgava
A5: Izpildītājs: Mītavas Elektra SIA
A6: Vien. reģ. Nr. 43603009810
A7: Jelgava, Vaļņu iela 8, LV-3001
A8: Līguma Nr. PIL/2-4/22/73
A9: Jelgavas valstspilsētas luksoforu objektu uzturēšana
A11: Par 2025. gada aprīļa mēnesī izpildītajiem darbiem
F12: ACF 5.1.31
A13: Kods | B13: Pakalpojuma veids | C13: Mēr- vienība | D13: Daudzums | E13: Vienības cena EUR | F13: Kopā EUR (bez PVN)
A14: 1.6 | B14: Signālgalvas demontāža | C14: gab. | D14: 4 | E14: 50.00 | F14: =ROUND(D14*E14,2) -> 200.00
A15: 1.10 | B15: Strādnieka darbs | C15: h | D15: 8 | E15: 45.00 | F15: =ROUND(D15*E15,2) -> 360.00
A16: 1.11 | B16: Autopacēlāja (līdz 7m augstumā) darba 1 stundas izcenojums | C16: h | D16: 4 | E16: 40.00 | F16: =ROUND(D16*E16,2) -> 160.00
A17: 3.5 | B17: Luksofora balsta taisnošana, remonts | C17: gab. | D17: 1 | E17: 30.00 | F17: =ROUND(D17*E17,2) -> 30.00
A18: 3.9 | B18: Datorizētās akustiskās gājēju izsaukuma pogas konfigurēšana, remonts | C18: gab. | D18: 2 | E18: 60.00 | F18: =ROUND(D18*E18,2) -> 120.00
A19: 5.3 | B19: Transporta signālgalvas ar papildsekciju montāža uz balsta | C19: kompl. | D19: 2 | E19: 80.00 | F19: =ROUND(D19*E19,2) -> 160.00
A20: 5.4 | B20: Transporta signālgalvas ar papildsekciju montāža uz konsoles (vārtiem) | C20: kompl. | D20: 1 | E20: 90.00 | F20: =ROUND(D20*E20,2) -> 90.00
A21: 5.6 | B21: Gājēju signālgalvas ar laika atskaites displeju montāža | C21: kompl. | D21: 1 | E21: 70.00 | F21: =ROUND(D21*E21,2) -> 70.00
A22: 5.9 | B22: Signālgalvas ar papildsekciju atstarojošā rāmīša nomaiņa | C22: gab. | D22: 3 | E22: 40.00 | F22: =ROUND(D22*E22,2) -> 120.00
A23: 5.13 | B23: Signāllēcas nomaiņa uz balsta | C23: gab. | D23: 4 | E23: 50.00 | F23: =ROUND(D23*E23,2) -> 200.00
A24: 5.15 | B24: Signālgalvas stāvokļa regulēšana | C24: gab. | D24: 2 | E24: 20.00 | F24: =ROUND(D24*E24,2) -> 40.00
A25: 6.8 | B25: Luksofora objekta signālplāna izstrāde | C25: gab. | D25: 3 | E25: 500.00 | F25: =ROUND(D25*E25,2) -> 1500.00
A26: 6.10 | B26: Luksofora objekta palaišana, izslēgšana vai pārslēgšana mirgojošā dzeltenajā režīmā | C26: gab. | D26: 1 | E26: 70.00 | F26: =ROUND(D26*E26,2) -> 70.00
A27: 7.1 | B27: Tehniskā apkope visiem (52) luksoforu objektiem | C27: mēnesis | D27: 1 | E27: 14000.00 | F27: =ROUND(D27*E27,2) -> 14000.00
A28: 8.4 | B28: Strādnieka darbs | C28: h | D28: 1 | E28: 50.00 | F28: =ROUND(D28*E28,2) -> 50.00
A29: 11.10 | B29: Brīdinājuma signālgalva (1 lēca, 300mm, LED 42V) Peek Supreme | C29: gab. | D29: 3 | E29: 169.00 | F29: =ROUND(D29*E29,2) -> 507.00
A30: 11.11 | B30: Signāllēca (300mm, LED 230V) Swarco Futurled | C30: gab. | D30: 2 | E30: 123.50 | F30: =ROUND(D30*E30,2) -> 247.00
A31: 11.12 | B31: Signāllēca (200mm, LED 230V) Swarco Futurled | C31: gab. | D31: 1 | E31: 93.60 | F31: =ROUND(D31*E31,2) -> 93.60
A32: 11.14 | B32: Signāllēca (200mm, LED 42V) Peek TLED | C32: gab. | D32: 1 | E32: 110.50 | F32: =ROUND(D32*E32,2) -> 110.50
A33: 11.17 | B33: Signālgalvas atstarojošais rāmītis ar papildsekciju | C33: gab. | D33: 3 | E33: 273.00 | F33: =ROUND(D33*E33,2) -> 819.00
D34: Kopā (bez PVN) EUR | F34: =SUM(F14:F33) -> 18947.10
D35: PVN 21% EUR | F35: =F34*0.21 -> 3978.89
D36: Kopā ar PVN EUR | F36: =F34+F35 -> 22925.99
C38: Pavisam kopā (bez PVN) EUR | F38: =F34 -> 18947.10
C39: Pavisam kopā PVN 21% EUR | F39: =F35 -> 3978.89
C40: Pavisam kopā ar PVN EUR | F40: =F38+F39 -> 22925.99
